bitfinex-derivatives/quotes_ETHF0:USTF0_20260203
["timestamp","ask_amount","ask_price","bid_price","bid_amount"]
[1770160254798,0.22971151,2232.4,2231.3,0.16668249]
[1770160255498,0.3899427,2233.4,2231.9,0.15940642]
[1770160256398,0.3957165,2233.4,2231.9,0.15940642]
[1770160257991,0.3957165,2233.4,2232.0,0.15940642]
[1770160258200,0.0057738,2233.4,2232.0,0.15940642]
[1770160258394,0.0057738,2233.4,2232.2,0.15940642]
[1770160258696,0.1657727,2232.9,2231.9,0.15940642]
[1770160258901,0.22424,2232.7,2231.6,0.15940642]
[1770160259699,0.1657727,2232.9,2231.6,0.15940642]
[1770160260303,0.2299438,2233.4,2232.0,0.15940642]
[1770160260602,0.1657727,2234.2,2232.8,0.15940642]
[1770160260903,0.1657727,2234.2,2232.9,0.15940642]
[1770160261104,0.1657727,2234.2,2232.8,4.00129304]
[1770160261105,0.3899127,2233.7,2232.8,0.15940642]
[1770160261301,0.3899127,2233.7,2232.5,0.15940642]
[1770160261498,0.3899227,2233.6,2232.5,0.15940642]
[1770160261697,0.3899227,2233.6,2232.5,0.16470885]
[1770160261698,0.00536105,2233.6,2232.5,0.16470885]
[1770160261906,0.3898227,2234.7,2233.1,0.15940642]
[1770160262106,0.1657727,2235.0,2233.4,0.15940642]
[1770160262305,0.1657727,2235.0,2233.6,0.15940642]
[1770160262803,0.16891628,2235.0,2233.8,4.16069946]
[1770160263007,0.16891628,2235.0,2233.8,0.15940642]
[1770160263501,0.00314358,2235.0,2233.8,0.15940642]
[1770160264209,0.1657727,2236.0,2234.1,0.15940642]
[1770160264603,0.24365336,2236.2,2234.9,0.15940642]
[1770160264808,0.1657727,2235.7,2234.4,0.15940642]
[1770160265101,0.1657727,2235.7,2233.9,2.241]
[1770160265102,0.1657727,2235.1,2233.9,0.15940642]
[1770160265302,0.39450895,2235.7,2233.9,0.15940642]
[1770160265900,0.1657727,2235.5,2233.9,0.15940642]
[1770160266104,2.241,2236.0,2233.6,2.628]
[1770160266105,12.70215052,2238.0,2235.4,0.15940642]
[1770160266309,0.16942705,2238.0,2236.5,0.22386]
[1770160266510,11.85715192,2237.9,2236.7,0.00192324]
[1770160266706,12.02561735,2237.9,2236.7,2.62992324]
[1770160266905,0.16846543,2237.0,2235.7,4.00129304]
[1770160267102,0.16846543,2236.5,2235.7,0.00445954]
[1770160267309,0.16846543,2236.3,2235.7,0.00445954]
[1770160267510,0.16846543,2236.1,2235.0,0.00192324]
[1770160267704,11.85715192,2236.4,2235.0,0.00192324]
[1770160267905,11.85715192,2236.2,2235.1,0.00192324]
[1770160268110,0.16846543,2237.4,2235.7,0.00192324]
[1770160268312,0.16846543,2237.4,2235.8,2.24]
[1770160268508,0.16846543,2237.4,2235.8,4.867]
[1770160268704,0.16846543,2237.4,2235.7,0.00192324]
[1770160268910,0.16923946,2237.2,2235.7,0.00192324]
[1770160269113,0.1739739,2237.2,2235.7,0.00722452]
[1770160269413,0.1739739,2237.2,2235.7,0.00530128]
[1770160270506,0.17233874,2237.1,2235.8,4.866]
[1770160270812,0.17233874,2237.0,2235.8,4.866]
[1770160271013,0.17233874,2236.9,2235.8,4.866]
[1770160271210,0.17233874,2236.8,2235.8,4.866]
[1770160271415,0.17233874,2236.7,2235.8,4.866]
[1770160271611,0.17233874,2236.3,2234.5,4.22535304]
[1770160271807,0.17233874,2236.3,2234.6,2.626]
[1770160272012,0.17233874,2236.7,2235.0,0.224]
[1770160272316,0.17233874,2236.7,2235.0,4.865]
[1770160272613,0.00473444,2237.2,2235.2,2.92391592]
[1770160272614,0.17702536,2237.2,2235.2,2.92391592]
[1770160272913,0.17702536,2237.2,2235.5,0.22395]
[1770160273311,0.17229092,2237.1,2235.5,0.22395]
[1770160273713,0.17229092,2237.1,2235.6,4.865]
[1770160273908,0.17229092,2237.0,2235.6,4.865]
[1770160274113,0.17229092,2236.9,2235.6,4.865]
[1770160275412,0.00473444,2237.2,2235.6,4.865]
[1770160275716,0.17631411,2237.2,2235.8,0.22393]
[1770160275914,0.17631411,2237.2,2235.9,0.22392]
[1770160276113,0.17631411,2237.2,2235.6,4.865]
[1770160276114,0.17631411,2237.2,2236.0,0.22391]
[1770160276308,0.00473444,2237.2,2236.1,0.2239]
[1770160276510,0.00473444,2237.2,2236.4,0.22387]
[1770160276709,0.17157967,2237.6,2236.4,0.22387]
[1770160276918,0.07780753,2238.1,2236.4,0.22387]
[1770160276919,0.1715271,2237.4,2236.4,5.08787]
[1770160277314,12.01682006,2237.3,2236.4,0.22387]
[1770160277521,12.18834716,2237.3,2236.4,0.22387]
[1770160277819,12.19354802,2237.3,2236.4,0.22387]
[1770160278015,0.1715271,2237.2,2235.8,0.22393]
[1770160278210,0.1715271,2237.1,2235.9,4.863]
[1770160278414,12.18834716,2237.1,2235.9,4.863]
[1770160278613,12.18846059,2237.0,2235.8,2.84893]
[1770160278813,0.17164053,2237.0,2235.8,5.08693]
[1770160279012,0.17164053,2237.0,2235.9,0.22392]
[1770160279412,0.00520086,2237.3,2235.8,7.78691592]
[1770160279720,0.17684139,2237.3,2236.2,0.22389]
[1770160280021,0.17164053,2237.2,2235.8,4.863]
[1770160280323,0.17164053,2237.1,2236.0,0.22391]
[1770160281118,0.00520086,2237.3,2236.1,0.2239]
[1770160281421,0.00520086,2237.3,2236.4,0.22387]
[1770160281617,0.00520086,2237.3,2235.8,7.78691592]
[1770160281817,0.17648851,2237.3,2235.5,4.00129304]
[1770160282017,0.17648851,2237.3,2236.2,0.22389]
[1770160282217,0.00520086,2237.3,2235.9,4.862]
[1770160282415,0.17149584,2237.9,2236.6,0.22385]
[1770160282918,0.17149584,2237.7,2236.6,0.22385]
[1770160283416,0.17650409,2237.7,2236.7,0.22384]
[1770160283622,0.17650409,2237.7,2236.8,4.861]
[1770160283924,0.00500825,2237.7,2236.8,4.861]
[1770160284124,0.00500825,2237.7,2237.0,0.22381]
[1770160284515,0.17206062,2238.4,2236.9,2.92391592]
[1770160284825,0.17206062,2238.4,2237.5,0.22376]
[1770160285220,0.17206062,2238.4,2237.2,0.22379]
[1770160285519,12.18888068,2238.3,2237.0,5.08481]
[1770160285719,12.01682006,2238.2,2237.1,0.2238]
[1770160286121,12.01682006,2238.1,2237.1,0.2238]
[1770160286316,12.18888068,2237.9,2236.8,2.237]
[1770160286520,0.17206062,2237.9,2236.8,5.08483]
[1770160286719,12.01682006,2237.7,2236.8,5.08483]
[1770160287019,12.01682006,2237.9,2236.9,4.861]
[1770160287226,0.17171217,2237.9,2236.9,4.861]
[1770160287418,12.01682006,2237.7,2236.9,2.624]
[1770160287725,12.18853223,2237.7,2236.9,4.861]
[1770160288028,0.17171217,2237.5,2236.6,0.00578125]
[1770160288217,0.17171217,2237.8,2236.6,0.22963125]
[1770160288620,12.01682006,2237.6,2236.6,4.69166767]
[1770160288821,12.18605645,2237.6,2236.6,0.00578125]
[1770160289021,0.16923639,2237.2,2236.6,0.00578125]
[1770160289327,0.16923639,2238.1,2236.6,0.00578125]
[1770160289618,0.16923639,2237.7,2236.7,4.22513304]
[1770160289820,0.16923639,2237.9,2236.9,0.22382]
[1770160290019,0.16923639,2237.9,2237.0,2.624]
[1770160290421,12.01682006,2237.9,2237.0,2.624]
[1770160290623,0.16937075,2237.9,2237.0,2.624]
[1770160290819,12.01682006,2237.8,2236.9,4.22511304]
[1770160291024,0.16937075,2237.8,2237.0,7.0867355]
[1770160291224,12.01682006,2237.7,2237.0,2.624]
[1770160291431,12.01682006,2237.6,2237.0,2.624]
[1770160291724,12.01682006,2237.6,2237.0,7.10975289]
[1770160291925,12.01682006,2237.5,2236.9,4.22511304]
[1770160292119,12.01682006,2237.7,2237.0,4.00129304]
[1770160292524,12.01682006,2237.6,2237.0,4.00129304]
[1770160292721,0.17196455,2237.5,2237.0,4.00129304]
[1770160292927,0.00557277,2238.4,2236.6,0.00578125]
[1770160292928,10.98711172,2237.0,2236.6,0.00578125]
[1770160293125,10.98711172,2236.9,2236.6,0.00578125]
[1770160293324,10.98711172,2237.2,2236.6,0.00578125]
[1770160293525,0.22375,2237.6,2236.6,0.00578125]
[1770160293826,10.98711172,2237.1,2236.6,0.00578125]
[1770160294027,10.98711172,2237.2,2236.6,0.00578125]
[1770160294224,10.98711172,2237.6,2236.6,0.00578125]
[1770160294721,10.98711172,2237.2,2236.6,0.00578125]
[1770160295023,0.15401111,2237.3,2236.6,0.00578125]
[1770160295527,10.98711172,2236.9,2236.6,0.00578125]
[1770160295821,10.98711172,2236.7,2236.3,5.33657204]
[1770160296022,0.15401111,2236.8,2236.1,5.33657204]
[1770160296228,10.98711172,2236.7,2236.1,5.33657204]
[1770160296528,0.15401111,2237.2,2236.2,5.33657204]
[1770160296728,10.98711172,2237.1,2236.2,5.50148931]
[1770160296928,0.15401111,2237.0,2236.2,0.00410532]
[1770160297135,10.98711172,2236.2,2235.2,6.79365048]
[1770160297424,0.22392,2236.0,2234.8,1.15376851]
[1770160297627,0.22392,2236.0,2234.8,0.16948939]
[1770160297828,3.595,2236.3,2234.7,2.236]
[1770160298023,3.595,2236.3,2234.7,0.0035157]
[1770160298024,10.98711172,2235.5,2234.7,0.0035157]
[1770160298225,10.9919683,2235.5,2234.7,0.0035157]
[1770160298429,10.98711172,2235.1,2234.7,0.0035157]
[1770160298825,0.00097981,2235.2,2234.0,0.16899948]
[1770160299030,0.00097981,2234.8,2233.4,0.16899948]
[1770160299336,10.98711172,2234.9,2233.4,0.16899948]
[1770160299528,2.237,2235.1,2232.9,0.16899948]
[1770160299529,0.00097981,2234.8,2232.9,0.16899948]
[1770160299729,10.98711172,2234.0,2232.4,0.16948939]
[1770160299930,2.92391592,2234.9,2232.4,0.16948939]
[1770160299931,0.2241,2234.2,2232.4,0.16948939]
[1770160300127,2.4611,2234.2,2232.5,0.16948939]
[1770160300326,2.8481,2234.1,2232.5,0.16948939]
[1770160300530,10.98711172,2233.6,2232.5,0.16948939]
[1770160300827,10.98711172,2233.5,2232.5,0.17453956]
[1770160301035,0.00327835,2233.6,2232.5,0.00505017]
[1770160301226,10.98711172,2232.8,2232.5,0.00505017]
[1770160301428,10.98711172,2232.6,2232.0,0.16972134]
[1770160301726,10.98711172,2232.9,2232.0,0.16972134]
[1770160302035,10.98711172,2232.6,2231.6,0.16972134]
[1770160302229,10.98711172,2232.8,2231.6,0.16972134]
[1770160302429,10.98711172,2232.6,2231.6,0.17409497]
[1770160302628,0.00527869,2233.6,2231.6,0.17409497]
[1770160302829,0.00327835,2233.6,2231.8,2.92391592]
[1770160303027,0.00327835,2233.6,2232.0,0.16848922]
[1770160303230,0.00327835,2233.6,2232.2,0.16848922]
[1770160303628,10.98711172,2233.2,2232.2,0.16848922]
[1770160303827,0.00327835,2233.6,2232.2,0.16848922]
[1770160303828,10.98711172,2233.3,2232.2,0.16848922]
[1770160304337,10.98711172,2233.2,2232.2,0.16848922]
[1770160304642,10.98711172,2233.4,2232.2,0.16848922]
[1770160305135,10.98711172,2233.3,2232.2,0.16848922]
[1770160305337,10.98711172,2233.4,2232.2,0.16848922]
[1770160305534,0.00363431,2233.3,2231.9,0.16767223]
[1770160305836,0.00363431,2233.3,2231.6,0.17204586]
[1770160306038,10.98711172,2232.8,2231.6,0.17204586]
[1770160306239,10.98711172,2232.8,2231.7,0.16767223]
[1770160306434,10.98711172,2232.6,2231.7,0.16767223]
[1770160306738,0.00390812,2233.0,2231.7,0.16767223]
[1770160306940,10.98711172,2232.6,2231.7,0.16767223]
[1770160307335,0.00390812,2232.7,2231.6,0.00437363]
[1770160307536,0.22426,2232.6,2231.6,0.17190896]
[1770160307736,11.21137172,2232.6,2231.6,0.17190896]
[1770160307936,10.98711172,2232.2,2231.6,0.17190896]
[1770160308136,10.98711172,2232.2,2231.6,0.00437363]
[1770160308337,0.22809812,2233.2,2231.6,0.17190896]
[1770160308538,10.98711172,2233.1,2231.6,0.17190896]
[1770160308741,0.00677618,2232.4,2231.2,0.1661013]
[1770160308942,0.22431,2232.1,2230.7,0.16828811]
[1770160309238,0.22431,2232.1,2230.9,0.16828811]
[1770160309444,11.21142172,2232.1,2230.9,0.16828811]
[1770160309644,10.98711172,2231.8,2230.9,0.16828811]
[1770160309940,0.00240255,2234.1,2231.4,0.16828811]
[1770160310142,0.00240255,2233.1,2231.4,0.16828811]
[1770160310338,0.22421,2233.0,2231.5,0.16828811]
[1770160310543,0.22423,2232.8,2231.5,0.16828811]
[1770160310941,0.22761634,2232.8,2231.5,0.16828811]
[1770160311142,0.00251728,2232.6,2231.5,0.16828811]
[1770160311342,0.22425,2232.7,2231.2,0.16824343]
[1770160311537,0.00338634,2232.8,2231.4,0.16824343]
[1770160311936,0.22761634,2232.8,2231.6,0.16824343]
[1770160312136,0.00338634,2232.8,2231.6,0.16824343]
[1770160312542,0.00338634,2232.8,2231.6,5.03624343]
[1770160312743,0.00338634,2232.8,2231.7,0.16866791]
[1770160314242,0.00338634,2232.8,2231.8,0.16866791]
[1770160314447,0.00338634,2232.8,2231.8,5.03666791]
[1770160314645,0.23194044,2232.7,2231.0,0.16565685]
[1770160314847,0.22429,2232.3,2231.0,0.16565685]
[1770160315248,0.00338634,2232.8,2231.0,0.16565685]
[1770160315546,0.00338634,2232.8,2231.1,0.16666431]
[1770160316149,0.00770757,2232.7,2231.1,0.16666431]
[1770160316545,0.23212937,2232.2,2231.1,0.16666431]
[1770160316843,0.00783937,2232.2,2231.1,0.16666431]
[1770160317041,0.00783937,2232.2,2230.9,0.00514507]
[1770160317245,0.00783937,2232.2,2230.9,0.17180938]
[1770160318446,0.22434,2231.8,2230.9,0.17180938]
[1770160318849,0.39380633,2231.6,2230.0,0.22451]
[1770160319048,0.16945633,2231.4,2230.1,2.241]
[1770160319348,0.16945633,2231.4,2230.9,0.17180938]
[1770160319548,0.16945633,2231.8,2230.9,0.17180938]
[1770160319746,0.22431,2232.0,2230.1,2.241]
[1770160319950,0.22427,2232.4,2230.7,0.22444]
[1770160320252,0.16945633,2232.5,2231.1,0.2244]
[1770160320645,0.16945633,2232.5,2231.2,2.241]
[1770160320951,0.16945633,2232.5,2231.3,0.16666431]
[1770160321154,0.00338634,2232.8,2231.3,0.39104431]
[1770160321355,0.00338634,2232.8,2231.6,0.16666431]
[1770160321657,0.16945633,2233.6,2232.5,0.33847369]
[1770160321854,0.16945633,2233.6,2232.6,0.16666431]
[1770160322054,0.16945633,2233.5,2232.3,2.40766431]
[1770160322554,0.16945633,2233.5,2232.3,2.57947369]
[1770160322751,0.17414731,2233.5,2232.3,2.58290194]
[1770160323148,0.16945633,2233.3,2232.3,0.34190194]
[1770160323450,0.16945633,2233.0,2232.3,0.00342825]
[1770160323949,0.22421,2233.0,2232.3,0.00342825]
[1770160324145,0.22421,2233.0,2231.5,2.241]
[1770160324146,0.39366633,2233.0,2231.7,0.16666431]
[1770160324344,0.39366633,2233.0,2231.9,0.16666431]
[1770160324550,0.39366633,2233.0,2232.0,0.17180938]
[1770160324749,0.16945633,2233.0,2232.0,0.17180938]
[1770160324954,0.39370633,2232.7,2231.4,0.16666431]
[1770160325154,0.39370633,2232.7,2231.4,0.17014223]
[1770160325348,0.39370633,2232.7,2231.6,0.17180938]
[1770160325854,0.22427,2232.4,2231.4,0.17014223]
[1770160326153,0.22427,2232.4,2231.5,0.17180938]
[1770160326353,0.22427,2232.4,2231.6,0.17180938]
[1770160326852,0.22427,2232.4,2231.7,0.17180938]
[1770160327054,0.22427,2232.4,2231.6,0.17180938]
[1770160327357,0.22427,2232.4,2231.8,0.33847369]
[1770160327547,0.22427,2232.4,2231.9,0.33847369]
[1770160327853,0.22427,2232.4,2231.6,0.17180938]
[1770160328356,0.22431,2232.0,2231.4,0.00347792]
[1770160328654,0.39376633,2232.0,2231.4,0.00347792]
[1770160329253,0.22431,2232.0,2231.4,0.00347792]
[1770160329555,0.22431,2232.0,2231.5,0.17180938]
[1770160330457,0.22426,2232.5,2231.8,0.17180938]
[1770160330756,0.22426,2232.5,2231.7,2.76521063]
[1770160330957,0.22426,2232.5,2231.7,2.93702001]
[1770160331251,0.22426,2232.5,2231.9,0.17180938]
[1770160331451,2.46522,2232.9,2231.9,0.16666431]
[1770160331649,2.46522,2232.9,2231.9,0.33847369]
[1770160331858,0.22424,2232.8,2231.9,0.33847369]
[1770160332154,0.22424,2232.7,2231.7,2.59854632]
[1770160332351,0.22424,2232.7,2231.7,2.7703557]
[1770160332546,0.22424,2232.7,2231.8,0.17180938]
[1770160332749,0.22424,2232.7,2231.9,0.17180938]
[1770160333558,0.22424,2232.7,2232.0,0.17180938]
[1770160333757,2.241,2232.9,2232.1,0.16666431]
[1770160333957,2.241,2232.9,2232.1,0.33847369]
[1770160334260,2.46522,2232.9,2232.1,0.33847369]
[1770160334559,2.46522,2232.9,2232.3,0.17180938]
[1770160334958,0.22422,2232.9,2232.4,0.17180938]
[1770160335158,0.2242,2233.2,2232.5,0.17180938]
[1770160335354,0.2242,2233.2,2232.3,0.16666431]
[1770160335553,0.2242,2233.2,2232.3,0.33847369]
[1770160335751,0.2242,2233.2,2232.4,0.17180938]
[1770160336258,0.00469098,2233.5,2232.9,0.17180938]
[1770160336555,0.00469098,2233.5,2232.8,0.33847369]
[1770160336763,0.00469098,2233.5,2232.9,0.16666431]
[1770160336963,0.2241,2234.2,2233.2,0.16666431]
[1770160337356,0.16945633,2234.3,2233.2,0.16666431]
[1770160337963,0.16945633,2234.1,2232.8,0.16666431]
[1770160338167,0.22414,2233.7,2232.8,0.16666431]
[1770160338360,0.22416,2233.5,2232.8,0.16666431]
[1770160338763,0.39361633,2233.5,2233.0,0.17180938]
[1770160338957,0.22416,2233.5,2233.0,0.16999174]
[1770160339163,0.16945633,2233.8,2233.2,0.17180938]
[1770160339364,0.39358633,2233.9,2233.1,0.17180938]
[1770160339563,0.16945633,2233.7,2233.0,0.00332743]
[1770160340166,0.39361633,2233.5,2233.0,0.00332743]
[1770160340567,0.39361633,2233.5,2233.1,0.17180938]
[1770160341070,0.39361633,2233.5,2233.0,0.00332743]
[1770160341071,0.68263402,2233.4,2233.0,0.00332743]
[1770160341270,0.22416,2233.5,2233.0,0.00332743]
[1770160341963,0.68263402,2233.8,2233.0,0.00332743]
[1770160342164,0.68263402,2234.1,2233.0,0.7183143]
[1770160342366,0.68263402,2234.1,2233.1,0.71498687]
[1770160342671,0.68263402,2233.7,2233.0,0.00332743]
[1770160342869,0.90677402,2233.7,2233.0,0.00332743]
[1770160343671,0.22414,2233.7,2233.0,0.00332743]
[1770160344571,0.68263402,2234.0,2233.0,0.00332743]
[1770160344771,0.68263402,2234.0,2233.0,0.7183143]
[1770160345073,0.22409,2234.2,2233.0,0.7183143]
[1770160345274,0.68263402,2234.1,2233.0,0.7183143]
[1770160345472,0.90673402,2234.1,2233.0,0.7183143]
[1770160345674,0.68263402,2234.0,2233.0,0.7183143]
[1770160346573,0.68263402,2233.9,2233.0,0.7183143]
[1770160347266,0.68263402,2233.9,2233.0,0.00332743]
[1770160347465,0.90676402,2233.8,2233.0,0.00332743]
[1770160348377,0.22413,2233.8,2233.0,0.7183143]
[1770160348578,0.22413,2233.8,2233.0,3.31686062]
[1770160348876,0.22413,2233.8,2233.0,0.7183143]
[1770160352082,0.68263402,2233.9,2233.0,0.7183143]
[1770160352880,0.90675402,2233.9,2233.0,0.7183143]
[1770160353782,0.22412,2233.9,2233.0,0.7183143]
[1770160353983,0.90675402,2233.9,2233.0,0.7183143]
[1770160354780,0.68263402,2233.8,2233.0,0.00332743]
[1770160354982,0.90679402,2233.6,2233.0,0.00332743]
[1770160355177,0.22416,2233.6,2233.0,0.00332743]
[1770160355383,0.68263402,2233.9,2233.0,0.7183143]
[1770160356585,0.00535778,2234.3,2232.1,0.71498687]
[1770160356586,0.68263402,2233.8,2232.1,0.71498687]
[1770160356884,0.22414,2233.7,2232.5,0.71498687]
[1770160357079,0.22414,2233.7,2232.7,0.71498687]
[1770160357676,0.22414,2233.7,2232.7,0.7197129]
[1770160359182,0.90677402,2233.7,2232.7,0.7197129]
[1770160359378,0.68263402,2233.6,2232.8,2.628]
[1770160359883,0.68263402,2233.6,2232.7,0.7197129]
[1770160360385,0.68263402,2233.6,2232.7,4.93144384]
[1770160360586,0.68263402,2233.6,2232.7,0.7197129]
[1770160361089,0.90683402,2233.1,2232.2,0.71498687]
[1770160361286,2.24,2233.8,2232.0,3.96310632]
[1770160361287,0.68263402,2233.0,2232.0,3.96310632]
[1770160361486,0.68263402,2232.5,2231.6,0.71498687]
[1770160361681,5.18894068,2233.4,2231.3,4.67809319]
[1770160361887,0.22424,2232.8,2231.5,0.71498687]
[1770160362185,0.22424,2232.7,2231.5,0.7204911]
[1770160362487,0.90688402,2232.6,2231.5,0.7204911]
[1770160362685,0.68263402,2232.5,2231.5,0.7204911]
[1770160363489,0.68263402,2232.4,2231.5,0.7204911]
[1770160364585,0.68263402,2232.4,2231.5,4.92406403]
[1770160364787,0.68263402,2232.4,2231.5,0.7204911]
[1770160365488,0.68263402,2232.4,2231.5,0.00550423]
[1770160365688,0.2243,2232.1,2231.5,0.05550423]
[1770160366383,0.22427,2232.4,2231.5,0.05]
[1770160366591,0.22433,2231.8,2230.9,0.71498687]
[1770160366791,0.90696402,2231.8,2230.9,0.71498687]
[1770160367183,0.22433,2231.8,2230.9,0.71498687]
[1770160367391,0.22428,2232.3,2231.0,0.71498687]
[1770160367689,0.22428,2232.3,2231.1,0.71498687]
[1770160368586,0.68263402,2232.7,2231.1,0.71498687]
[1770160368791,0.68263402,2232.6,2231.2,0.71498687]
[1770160368991,0.68263402,2232.5,2231.2,0.71498687]
[1770160370287,0.68263402,2232.5,2231.3,3.34398687]
[1770160370589,0.68263402,2232.5,2231.4,2.41710625]
[1770160371093,2.4341812,2232.4,2231.4,2.41710625]
[1770160371288,2.4341812,2232.1,2231.1,2.41710625]
[1770160371889,2.4341812,2231.9,2230.9,0.00505322]
[1770160372086,2.4341812,2231.7,2230.9,0.00505322]
[1770160372589,0.22433,2231.8,2230.9,2.42215947]
[1770160374596,2.6584612,2232.3,2230.9,2.42215947]
[1770160374791,2.6584612,2232.3,2231.0,2.41710625]
[1770160375297,2.44540915,2232.6,2231.2,2.34490599]
[1770160376596,2.66966915,2232.6,2231.2,2.34490599]
[1770160376898,2.44540915,2232.4,2231.2,2.34490599]
[1770160377599,2.44540915,2232.4,2231.3,2.34490599]
[1770160379191,0.0048878,2232.8,2231.7,2.34490599]
[1770160379395,0.0048878,2232.8,2231.1,6.59210632]
[1770160379396,0.0048878,2232.8,2232.1,2.34490599]
[1770160379902,2.44540915,2233.4,2232.1,4.18302142]
[1770160380096,18.314,2234.2,2231.2,2.34490599]
[1770160380097,0.22425,2232.6,2231.2,2.34490599]
[1770160380504,0.22425,2232.6,2231.3,2.629]
[1770160381006,0.22851167,2232.6,2231.3,2.629]
[1770160381497,0.22426,2232.5,2231.4,2.54166406]
[1770160381697,0.22427,2232.4,2231.4,2.54166406]
[1770160382805,0.00426167,2232.6,2231.4,2.54166406]
[1770160383804,0.00426167,2232.6,2231.6,2.4555599]
[1770160384005,0.22419,2233.2,2232.0,2.45342907]
[1770160384199,2.241,2233.3,2232.0,2.45342907]
[1770160384399,0.22415,2233.6,2232.0,2.45342907]
[1770160384707,0.40367591,2233.4,2232.1,2.45335453]
[1770160384900,0.22418,2233.3,2232.1,2.45335453]
[1770160386005,0.00581646,2233.4,2232.1,2.45335453]
[1770160386403,0.00581646,2233.4,2232.5,2.45335453]
[1770160386701,0.18355397,2234.8,2232.9,2.4513305]
[1770160387001,2.46502,2235.0,2233.7,2.4513305]
[1770160387203,0.40759397,2234.7,2233.3,2.4513305]
[1770160387400,0.22407,2234.5,2233.3,2.4513305]
[1770160387602,0.22408,2234.3,2233.3,2.4513305]
[1770160388005,0.40763397,2234.3,2233.3,2.4513305]
[1770160388204,0.00442417,2234.5,2233.3,2.4513305]
[1770160390807,0.22848417,2234.5,2233.3,2.4513305]
[1770160391006,0.22407,2234.4,2233.3,2.4513305]
[1770160391604,0.35930634,2234.4,2233.3,2.4513305]
[1770160392606,0.22407,2234.4,2233.3,2.4513305]
[1770160395508,0.00442417,2234.5,2233.3,2.4513305]
[1770160397409,0.00442417,2234.5,2233.6,2.50208961]
[1770160397710,0.00442417,2234.5,2233.7,2.50208961]
[1770160399507,0.08167575,2235.6,2233.7,2.50208961]
[1770160399713,0.22396,2235.6,2234.1,2.50005752]
[1770160400010,0.08609992,2235.8,2234.1,2.50005752]
[1770160400211,0.22398,2235.3,2234.1,2.50005752]
[1770160400407,0.22402,2234.9,2234.1,2.50005752]
[1770160400607,0.22932485,2234.9,2234.1,2.50414958]
[1770160401813,0.00530485,2234.9,2234.1,2.50414958]
[1770160402210,0.22409,2234.2,2233.5,2.50690089]
[1770160402906,0.22409,2234.2,2233.2,2.51320941]
[1770160403107,0.22414,2233.7,2232.9,2.51320941]
[1770160403306,0.22414,2233.7,2232.9,2.51669153]
[1770160407416,0.22409,2234.2,2232.9,2.51669153]
[1770160408316,0.22404,2234.7,2232.9,2.74091153]
[1770160408514,0.22408,2234.3,2232.9,2.51669153]
[1770160410112,0.22408,2234.3,2233.0,2.51654022]
[1770160411614,0.22408,2234.3,2233.1,2.51736475]
[1770160411815,2.24530485,2234.9,2233.1,2.51736475]
[1770160412110,0.22406,2234.6,2233.1,2.51736475]
[1770160412717,2.46932485,2234.9,2233.7,2.52189577]
[1770160413420,2.46932485,2234.9,2233.8,2.52189577]
[1770160413813,2.24530485,2234.9,2233.8,2.52189577]
[1770160414213,0.22405,2234.7,2233.8,2.52189577]
[1770160414922,0.22408,2234.4,2233.8,2.52189577]
[1770160415623,0.22412,2234.0,2232.9,3.99702709]
[1770160415923,0.22414,2233.8,2232.9,0.00348212]
[1770160417224,5.18894068,2234.6,2232.9,0.00348212]
[1770160417523,0.22409,2234.2,2233.0,2.4578474]
[1770160417721,0.22412,2233.9,2233.0,2.4578474]
[1770160418622,0.22413,2233.9,2233.0,2.4578474]
[1770160418826,2.10441722,2234.3,2233.0,2.4578474]
[1770160419925,0.22414,2233.8,2233.0,2.4578474]
[1770160423118,9.9213579,2234.7,2233.0,2.4578474]
[1770160423323,0.22409,2234.2,2233.0,2.4578474]
[1770160423720,2.628,2234.7,2233.0,2.4578474]
[1770160423917,0.22405,2234.6,2233.3,2.4578474]
[1770160424323,0.22405,2234.6,2233.4,2.4578474]
[1770160424522,2.24530485,2234.9,2233.4,2.4578474]
[1770160424727,0.22408,2234.3,2233.4,2.4578474]
[1770160425428,0.22404,2234.8,2233.4,2.4578474]
[1770160425626,0.22404,2234.7,2233.5,2.4578474]
[1770160426823,0.22405,2234.6,2233.5,2.4578474]
[1770160427029,0.22406,2234.5,2233.5,2.4578474]
[1770160427826,0.22408,2234.4,2233.5,2.4578474]
[1770160428839,0.22408,2234.3,2233.5,2.4578474]
[1770160429936,0.22413,2233.8,2232.9,0.00348212]
[1770160431841,0.22413,2233.8,2233.0,1.44766668]
[1770160432041,40.96629567,2234.4,2233.0,1.44766668]
[1770160432336,0.2241,2234.1,2233.0,1.44766668]
[1770160432541,0.22407,2234.5,2233.2,1.44783843]
[1770160432944,0.22408,2234.4,2233.2,1.44783843]
[1770160433134,0.22408,2234.3,2233.2,1.44783843]
[1770160433335,2.10441722,2234.4,2233.2,1.44783843]
[1770160433540,0.22413,2233.8,2233.2,1.44783843]
[1770160433741,0.22416,2233.6,2233.2,1.44783843]
[1770160434441,0.22416,2233.6,2232.9,0.00348212]
[1770160434645,4.34441722,2234.0,2232.9,1.45221231]
[1770160435545,0.22417,2233.5,2232.9,1.45221231]
[1770160437045,2.46411,2234.0,2232.9,1.45221231]
[1770160437245,38.86187845,2234.4,2233.1,1.45063752]
[1770160437246,0.22407,2234.4,2233.1,1.45063752]
[1770160437448,0.22407,2234.4,2233.2,1.45063752]
[1770160437949,0.22408,2234.3,2233.2,1.45063752]
[1770160440449,42.41687845,2234.8,2233.2,1.45063752]
[1770160440645,38.86187845,2234.5,2233.2,1.45063752]
[1770160440844,0.22413,2233.8,2233.2,1.45063752]
[1770160441545,0.22414,2233.7,2233.2,1.45063752]
[1770160441847,0.22416,2233.6,2233.2,0.99528752]
[1770160442745,6.01511,2234.0,2233.2,0.99528752]
[1770160444845,0.22412,2233.9,2233.2,0.99528752]
[1770160445144,0.22414,2233.7,2233.2,0.99528752]
[1770160449856,5.791,2234.0,2233.2,0.99528752]
[1770160450157,14.22571592,2234.6,2233.4,1.22510887]
[1770160450158,0.22405,2234.6,2233.4,1.22510887]
[1770160451246,0.22405,2234.6,2233.5,1.22825724]
[1770160451454,5.81430485,2234.9,2233.6,1.22825724]
[1770160451951,0.22404,2234.8,2233.6,1.22825724]
[1770160452854,0.22406,2234.6,2233.6,1.22825724]
[1770160453853,5.81430485,2234.9,2233.6,1.22825724]
[1770160454156,38.86187845,2234.8,2233.6,1.22825724]
[1770160454355,0.22403,2234.8,2233.6,1.22825724]
[1770160457459,5.81430485,2234.9,2233.8,1.22981523]
[1770160459064,0.22403,2234.8,2233.8,1.22981523]
[1770160461862,5.81430485,2234.9,2233.8,1.22981523]
[1770160462450,2.24530485,2234.9,2233.8,1.22981523]
[1770160463454,2.46932485,2234.9,2233.8,1.22981523]
[1770160463864,2.24530485,2234.9,2233.8,1.22981523]